fUSD/lending_fUSD_20241021
["ID","MTS","AMOUNT","RATE_DAILY","PERIOD"]
[340619830,1729541438729,-5314.22404625,0.000479,120]
[340619831,1729541438740,-10053.68114344,0.000479,120]
[340619832,1729541438752,-383.08113718,0.000479,120]
[340619833,1729541438764,-877.11585098,0.000479,120]
[340619834,1729541438779,-998.52364019,0.00046843,10]
[340619835,1729541438791,-315.26805803,0.00046843,10]
[340619836,1729541438801,-3.97494058,0.000479,120]
[340619837,1729541438813,-440.1604635,0.000479,120]
[340619838,1729541438826,-11819.88209612,0.000479,120]
[340619839,1729541438836,-160.55242834,0.000479,30]
[340619840,1729541438847,-419.66907032,0.000479,25]
[340619841,1729541438858,-179.77255072,0.000479,2]
[340619842,1729541438869,-168.22997927,0.000479,2]
[340619843,1729541438879,-5449.18182486,0.000479,2]
[340619844,1729541438889,-150.0,0.00047932,7]
[340619845,1729541438898,-150.0,0.00047932,14]
[340619846,1729541438908,-150.0,0.00047935,7]
[340619847,1729541438917,-150.0,0.0004794,7]
[340619848,1729541438926,-150.0,0.00047943,7]
[340619849,1729541438936,-150.0,0.00047947,7]
[340619850,1729541438945,-150.0,0.00047954,7]
[340619851,1729541438955,-150.0,0.00047959,7]
[340619852,1729541438965,-150.0,0.00047971,7]
[340619853,1729541438975,-150.0,0.00047971,7]
[340619854,1729541438985,-150.0,0.00047975,7]
[340619855,1729541438995,-38856.8772772,0.0004798,10]
[340619856,1729541439006,-150.0,0.00047988,7]
[340619857,1729541439016,-6476.14621286,0.00047989,10]
[340619858,1729541439026,-3238.07310643,0.0004799,10]
[340619859,1729541439036,-150.0,0.00047991,14]
[340619860,1729541439046,-150.0,0.00047995,7]
[340619861,1729541439055,-150.01,0.00047999,2]
[340619862,1729541439065,-6111.68733364,0.00047999,2]
[340619863,1729541439075,-375.0,0.00047999,14]
[340619864,1729541439084,-222.44279914,0.00047999,31]
[340619865,1729541439095,-2000.0,0.00047999,120]
[340619866,1729541439104,-50000.0,0.00048,48]
[340619867,1729541439114,-150.0,0.00048,7]
[340619868,1729541439124,-65968.33078175,0.00048,120]
[340619869,1729541439136,-13346.76716289,0.00048,120]
[340619870,1729541439148,-480.0068938,0.00048,120]
[340619871,1729541439160,-14492.75814394,0.00048,120]
[340619872,1729541439172,-290.08119832,0.00048,120]
[340619873,1729541439184,-441.66001173,0.00048,120]
[340619874,1729541439195,-521.17192969,0.00048,120]
[340619875,1729541439207,-775.44461026,0.00048,120]
[340619876,1729541439218,-15403.92617742,0.00048,120]
[340619877,1729541439230,-326.10600187,0.00048,120]
[340619878,1729541439242,-932.219486,0.00048,120]
[340619879,1729541439254,-1355.02815999,0.00048,120]
[340619880,1729541439265,-1698.91124941,0.00048,120]
[340619881,1729541439277,-669.980028,0.00048,120]
[340619882,1729541439289,-2704.63123454,0.00048,120]
[340619896,1729541440020,-1883.44260925,0.00048,120]
[340619897,1729541440075,-987.8280175,0.00048,120]
[340619898,1729541440233,-134820.26329716,0.00048,120]
[340619899,1729541440245,-49142.2096465,0.00048,120]
[340619900,1729541440258,-33436.59177086,0.00048,120]
[340619901,1729541440268,-259017.30407047,0.00048,120]
[340619902,1729541440279,-787.15812301,0.00048,120]
[340619903,1729541440338,-1169.8360112,0.00048,120]
[340619971,1729541442973,-3055.84366682,0.00047999,2]
[340619972,1729541442983,-49002.34633318,0.00048,120]
[340619973,1729541443080,-489.48,0.00048,120]
[340619974,1729541443186,-2976.78649972,0.00048,120]
[340619975,1729541443242,-900.0,0.00048,120]
[340619997,1729541446031,-154.0,0.00048,7]
[340619998,1729541446040,-566.0660905,0.00048,120]
[340619999,1729541446138,-291.21894757,0.00048,120]
[340620000,1729541446149,-2059.33678768,0.00048,120]
[340620001,1729541446246,-437604.05476193,0.00048,120]
[340620005,1729541462437,-300.0,0.00019725,2]
[340620009,1729541582745,-164.67,0.00019178,2]
[340620010,1729541582768,-135.33,0.00019725,2]
[340620011,1729541585597,-164.67,0.00019725,2]
[340620019,1729541643012,-300.0,0.00019725,2]
[340620020,1729541650028,158.91,0.00010959,2]
[340620021,1729541823147,-153.0,0.00019725,2]
[340620022,1729542060943,250.0,0.0001,2]
[340620023,1729542063588,-300.0,0.00012,2]
[340620024,1729542064163,-350.0,0.00014,2]
[340620025,1729542069697,-400.0,0.00016,2]
[340620026,1729542070793,-450.0,0.00018,2]
[340620027,1729542071335,-500.0,0.0002,2]
[340620030,1729542308200,3544439.68159641,0.00011,2]
[340620031,1729542343622,-192.12,0.00019178,2]
[340620032,1729542343643,-2270.14399882,0.0002,2]
[340620033,1729542346176,-465.06600118,0.0002,2]
[340620048,1729542439269,-158.06,0.00015,2]
[340620049,1729542440879,-866.84848054,0.00015,2]
[340620057,1729542482520,538650.8507448,0.00011,2]
[340620058,1729542493678,6971.32299704,0.000109,2]
[340620059,1729542500000,-200.0,0.0001634,2]
[340620096,1729542632211,-158.06,0.00016712,2]
[340620097,1729542632220,-334.74071544,0.00019899,2]
[340620098,1729542632229,-1000.0,0.00019999,2]
[340620099,1729542632238,-300.0,0.00019999,2]
[340620100,1729542632247,-26492.42216056,0.0002,2]
[340620101,1729542632377,-74411.25051678,0.0002,2]
[340620102,1729542632387,-2462.26399882,0.0002,2]
[340620103,1729542632396,-1414.0,0.000209,2]
[340620104,1729542632406,-3764.54,0.0002099,2]
[340620105,1729542632415,-441.27,0.0002099,3]
[340620106,1729542632424,-50321.87488146,0.00021,4]
[340620107,1729542632433,-499.99,0.00021,2]
[340620109,1729542632443,-8827.07,0.00021,2]
[340620111,1729542632452,-3297.03,0.00021,2]
[340620113,1729542632461,-150.99,0.00021297,2]
[340620114,1729542632470,-3754.1,0.00021297,2]
[340620115,1729542632479,-550.0,0.00022,2]
[340620116,1729542632489,-23900.0,0.00022426,2]
[340620117,1729542632498,-585.88,0.00022456,2]
[340620118,1729542632507,-150.0,0.00022854,2]
[340620119,1729542632517,-2470.77,0.00022968,2]
[340620120,1729542632527,-265.54630016,0.0002301,2]
[340620121,1729542632536,-563.7394188,0.0002322,2]
[340620122,1729542632549,-17758.09544857,0.00023412,2]
[340620133,1729542638617,-749.86877271,0.0002,2]
[340620134,1729542638674,-683.19908056,0.0002,2]
[340620135,1729542638685,-331.59527212,0.0002,2]
[340620136,1729542638694,-8592.62826972,0.00023412,2]
[340620171,1729542640247,-3482.32019148,0.00023412,2]
[340620172,1729542640258,-577.87064722,0.00023412,2]
[340620176,1729542643203,-854.55749319,0.00023412,2]
[340620177,1729542643258,-2494.99999999,0.00023412,2]
[340620178,1729542643449,-19965.06960706,0.00023412,2]
[340620186,1729542646343,-7306.78834277,0.00023412,2]
[340620187,1729542646352,-250.0,0.00023412,2]
[340620188,1729542646362,-150.0,0.00023464,2]
[340620189,1729542646372,-200.0,0.00023553,2]
[340620190,1729542646381,-2751.0,0.00023595,2]
[340620191,1729542646390,-22808.14,0.00023653,2]
[340620192,1729542646399,-1003.0,0.00024,5]
[340620193,1729542646408,-969.12538892,0.00024,2]
[340620194,1729542646417,-302.38,0.00024,2]
[340620195,1729542646427,-299.99,0.00024,7]
[340620196,1729542646436,-646.31,0.00024,2]
[340620197,1729542646445,-6627.58406576,0.00024,2]
[340620198,1729542646454,-1757.21,0.00024017,2]
[340620199,1729542646463,-150.0,0.00024075,2]
[340620200,1729542646472,-2188.55111218,0.0002408,2]
[340620201,1729542646484,-1883.3389733,0.0002408,2]
[340620202,1729542646494,-781.9,0.00024086,2]
[340620203,1729542646503,-500.0,0.00024167,2]
[340620204,1729542646650,-250.0,0.00024273,2]
[340620205,1729542646663,-800.0,0.00024499,2]
[340620206,1729542646672,-258.46010999,0.00024499,2]
[340620207,1729542646688,-540.29989001,0.00024499,2]
[340620208,1729542646697,-2417.00519485,0.000245,7]
[340620209,1729542646708,-282.78234949,0.000245,7]
[340620210,1729542646719,-3581.01432309,0.000245,7]
[340620211,1729542819373,163.41,0.00010959,2]
[340620212,1729543328427,155.48,0.00010959,2]
[340620231,1729543835696,-150.0,0.00017244,2]
[340620232,1729543835705,-192.12,0.00019178,2]
[340620233,1729543835714,-272.99,0.00020198,2]
[340620238,1729543838735,-644.098511,0.00020198,2]
[340620239,1729543838745,-1661.0,0.000203,2]
[340620240,1729543838755,-556.58,0.00020589,2]
[340620241,1729543838763,-1960.24934334,0.00020589,2]
[340620242,1729543838794,-404.23910663,0.00020589,2]
[340620243,1729543838805,-4207.4695537,0.00020589,2]
[340620244,1729543838847,-4832.50422936,0.00020589,2]
[340620245,1729543838903,-3733.42968016,0.00020589,2]
[340620246,1729543838911,-24519.70382742,0.00021781,2]
[340620247,1729543838958,-1193.41,0.00021781,2]
[340620248,1729543839438,-55214.98617258,0.00021781,2]
[340620249,1729543839447,-360.0,0.00021816,2]
[340620250,1729543839457,-250.0,0.00021867,2]
[340620251,1729543839466,-23900.0,0.00021953,2]
[340620252,1729543839474,-370.0,0.0002199,2]
[340620253,1729543839483,-354.38,0.0002203,2]
[340620254,1729543839492,-150.0,0.00022041,2]
[340620255,1729543839502,-499.99,0.00022041,2]
[340620256,1729543839512,-19965.07,0.00022047,2]
[340620257,1729543839523,-250.0,0.00022219,2]
[340620258,1729543839532,-298.89,0.00022235,2]
[340620259,1729543839543,-20244.22,0.00022321,2]
[340620260,1729543839552,-51382.42,0.00022382,2]
[340620261,1729543839560,-250.0,0.00022382,2]
[340620262,1729543839570,-155.48,0.00022416,2]
[340620263,1729543839579,-150.0,0.00022485,2]
[340620264,1729543839589,-44708.91,0.00022566,2]
[340620265,1729543839598,-640.0,0.00022704,2]
[340620266,1729543839608,-150.0,0.0002274,2]
[340620267,1729543839617,-556.58,0.00022853,2]
[340620268,1729543839626,-3465.61440042,0.000233,2]
[340620269,1729543839635,-191.67,0.00023418,2]
[340620270,1729543839645,-150.0,0.00023439,2]
[340620271,1729543839654,-198.2,0.00023483,2]
[340620272,1729543839663,-2500.0,0.00023761,2]
[340620273,1729543839673,-344.29,0.0002399,2]
[340620274,1729543839682,-150.0,0.00024138,2]
[340620275,1729543839691,-9549.0935657,0.0002425,4]
[340620276,1729543839700,-559.0,0.00024256,2]
[340620277,1729543839709,-500.0,0.00024259,2]
[340620278,1729543839718,-353.68668098,0.00024259,2]
[340620279,1729543839728,-500.0,0.00024259,2]
[340620280,1729543839737,-500.0,0.00024259,2]
[340620281,1729543839746,-617.55580739,0.00024259,2]
[340620282,1729543839755,-500.0,0.00024259,2]
[340620283,1729543839764,-500.0,0.00024259,2]
[340620284,1729543839773,-500.0,0.00024259,2]
[340620285,1729543839781,-500.0,0.00024259,2]
[340620286,1729543839791,-500.0,0.00024259,2]
[340620287,1729543839800,-124486.13564563,0.0002426,2]
[340620288,1729543839809,-421.41005681,0.00024316,2]
[340620289,1729543839817,-189.86,0.00024396,2]
[340620290,1729543839826,-4774.54678285,0.0002449,4]
[340620291,1729543839835,-38124.16784022,0.000245,7]
[340620292,1729543839844,-249.99999801,0.000245,2]
[340620293,1729543839853,-360.0,0.00024543,2]
[340620294,1729543839862,-189.05189065,0.000248,2]
[340620295,1729543839870,-500.0,0.000248,2]
[340620296,1729543839879,-150.0,0.00024837,2]
[340620297,1729543839888,-179.02,0.00024877,30]
[340620298,1729543839898,-317.46,0.000249,2]
[340620299,1729543839908,-997.76,0.000249,2]
[340620300,1729543839917,-173.47,0.00024925,2]
[340620301,1729543839928,-954.90935657,0.00024928,4]
[340620302,1729543839938,-8500.0,0.00024937,2]
[340620303,1729543839947,-954.90935657,0.00024945,4]
[340620304,1729543839956,-8500.0,0.00024946,2]
[340620305,1729543839965,-954.90935657,0.00024953,4]
[340620307,1729543839974,-954.90935657,0.00024954,4]
[340620309,1729543839984,-8500.0,0.00024955,2]
[340620311,1729543839996,-954.90935657,0.00024963,4]
[340620313,1729543840008,-8500.0,0.00024964,2]
[340620315,1729543840017,-8500.0,0.00024973,2]
[340620317,1729543840028,-8500.0,0.00024981,2]
[340620319,1729543840038,-175.59,0.00024989,2]
[340620321,1729543840048,-2500.0,0.00024989,2]
[340620322,1729543840057,-151.0,0.0002499,7]
[340620323,1729543840066,-244.969492,0.0002499,7]
[340620324,1729543840075,-232.473259,0.0002499,7]
[340620325,1729543840084,-232.473259,0.0002499,7]
[340620326,1729543840093,-3036.856312,0.0002499,7]
[340620327,1729543840102,-3036.856312,0.0002499,7]
[340620328,1729543840111,-262.026973,0.0002499,7]
[340620329,1729543840119,-262.026973,0.0002499,7]
[340620330,1729543840128,-8500.0,0.0002499,2]
[340620331,1729543840137,-9661.53736864,0.0002499,2]
[340620338,1729543840364,-334.39,0.0002499,2]
[340620339,1729543840377,-319.196952,0.0002499,2]
[340620340,1729543840421,-1493.21360508,0.0002499,2]
[340620341,1729543840433,-2480.88,0.0002499,2]
[340620342,1729543840444,-795.2994959,0.0002499,2]
[340620343,1729543840478,-5591.6051556,0.0002499,2]
[340620344,1729543840490,-3433.7363163,0.0002499,2]
[340620345,1729543840501,-4617.91216045,0.0002499,2]
[340620346,1729543840511,-1244.09212786,0.0002499,2]
[340620347,1729543840536,-2396.13975769,0.0002499,2]
[340620348,1729543840594,-1947.98619997,0.0002499,2]
[340620349,1729543840653,-684.01086051,0.0002499,2]
[340620350,1729543840662,-8500.0,0.00024999,2]
[340620351,1729543840671,-31554.65163843,0.00024999,2]
[340620352,1729543840682,-3445.34836157,0.00024999,2]
[340620353,1729543840691,-1755.66057216,0.00024999,2]
[340620354,1729543840703,-1505.14335256,0.00024999,2]
[340620356,1729543840713,-148.05164922,0.00024999,2]
[340620423,1729543843712,-2171.7838085,0.00024999,2]
[340620436,1729543846799,-30398.26926347,0.00024999,2]
[340620437,1729543846808,-151.0,0.00024999,7]
[340620438,1729543846818,-298.89,0.00025015,120]
[340620439,1729543846827,-556.58,0.00025117,2]
[340620440,1729543846836,-344.29,0.0002519,2]
[340620441,1729543846846,-175.59,0.00025499,2]
[340620442,1729543846855,-262.026973,0.00025509,7]
[340620443,1729543846864,-262.026973,0.00025509,7]
[340620444,1729543846873,-23379.57506916,0.00025509,2]
[340620445,1729543846883,-150.0,0.00025537,2]
[340620446,1729543846892,-640.0,0.00025542,2]
[340620447,1729543846901,-189.86,0.00025765,2]
[340620448,1729543846911,-150.0,0.00026236,2]
[340620449,1729543846920,-191.67,0.00026345,120]
[340620450,1729543846929,-344.29,0.0002639,2]
[340620451,1729543846938,-150.0,0.00026935,2]
[340620452,1729543846949,-175.59,0.0002699,2]
[340620453,1729543846958,-175.59,0.0002699,2]
[340620454,1729543846967,-2500.0,0.00026999,2]
[340620455,1729543846976,-134230.31834345,0.00027,7]
[340620456,1729543846985,-151.0,0.00027,7]
[340620457,1729543846994,-1901.913996,0.00027,2]
[340620458,1729543847004,-232.473259,0.00027,7]
[340620459,1729543847013,-232.473259,0.00027,7]
[340620460,1729543847022,-3036.856312,0.00027,7]
[340620461,1729543847031,-3036.856312,0.00027,7]
[340620462,1729543847040,-262.026973,0.00027,7]
[340620463,1729543847049,-262.026973,0.00027,7]
[340620464,1729543847058,-360.0,0.0002727,2]
[340620465,1729543847067,-556.58,0.00027381,2]
[340620466,1729543847077,-151.0,0.00027397,7]
[340620467,1729543847086,-151.0,0.00027397,7]
[340620468,1729543847095,-178.485028,0.00027397,7]
[340620469,1729543847104,-179.02,0.00027461,30]
[340620470,1729543847113,-344.29,0.00027589,2]
[340620471,1729543847122,-150.0,0.00027634,2]
[340620472,1729543847131,-298.89,0.00027794,120]
[340620473,1729543847140,-4631.93,0.00027948,18]
[340620474,1729543847150,-150.0,0.00028333,2]
[340620475,1729543847159,-640.0,0.00028379,2]
[340620476,1729543847168,-344.29,0.00028789,2]
[340620477,1729543847178,-150.0,0.00029032,2]
[340620478,1729543847187,-191.67,0.00029272,120]
[340620479,1729543847196,-556.58,0.00029645,2]
[340620480,1729543847206,-150.0,0.00029732,2]
[340620481,1729543847215,-360.0,0.00029997,2]
[340620482,1729543847224,-5911.79635606,0.0003,7]
[340620483,1729543847234,-179.02,0.00030045,30]
[340620484,1729543847243,-150.0,0.00030431,2]
[340620485,1729543847252,-298.89,0.00030574,120]
[340620486,1729543847261,-354.38,0.00030842,2]
[340620487,1729543847271,-150.0,0.0003113,2]
[340620488,1729543847280,-175.59,0.00031208,2]
[340620489,1729543847289,-640.0,0.00031217,2]
[340620490,1729543847302,-150.0,0.00031829,2]
[340620491,1729543847312,-556.58,0.00031909,2]
[340620492,1729543847322,-191.67,0.00032199,120]
[340620493,1729543847331,-150.0,0.00032528,2]
[340620494,1729543847340,-179.02,0.00032629,120]
[340620495,1729543847350,-360.0,0.00032724,2]
[340620496,1729543847359,-500.0,0.000328,13]
[340620497,1729543847368,-502.519854,0.00033,14]
[340620498,1729543847378,-150.0,0.00033227,2]
[340620499,1729543847388,-521.35692224,0.00033259,5]
[340620500,1729543847398,-298.89,0.00033353,120]
[340620501,1729543847407,-150.0,0.000338,120]
[340620502,1729543847416,-523.931363,0.000338,120]
[340620503,1729543847425,-500.0,0.000338,13]
[340620504,1729543847435,-155.48,0.00033873,2]
[340620505,1729543847444,-672.19219235,0.00033893,2]
[340620506,1729543847453,-640.0,0.00034055,2]
[340620507,1729543847462,-556.58,0.00034173,2]
[340620508,1729543847471,-191.67,0.00035126,120]
[340620509,1729543847480,-179.02,0.00035213,120]
[340620510,1729543847490,-192.12,0.00035616,120]
[340620511,1729543847499,-556.58,0.00036436,2]
[340620512,1729543847508,-232.473259,0.00037147,7]
[340620513,1729543847517,-232.473259,0.00037147,7]
[340620514,1729543847526,-3036.856312,0.00037147,7]
[340620515,1729543847535,-3036.856312,0.00037147,7]
[340620516,1729543847545,-179.02,0.00037797,120]
[340620517,1729543847554,-4835.25721014,0.000379,2]
[340620518,1729543847563,-246.485568,0.000379,7]
[340620519,1729543847573,-6260.60275481,0.0003818,2]
[340620520,1729543847582,-556.58,0.000387,2]
[340620521,1729543847591,-182.0,0.000389,2]
[340620522,1729543847600,-3391.7,0.00039,2]
[340620523,1729543847610,-381.55,0.00039005,2]
[340620524,1729543847619,-281.07,0.00039005,2]
[340620525,1729543847628,-359.53,0.00039279,2]
[340620526,1729543847638,-359.53,0.00039279,2]
[340620527,1729543847647,-353.04,0.00039279,2]
[340620528,1729543847656,-500.0,0.00039533,5]
[340620529,1729543847665,-1000.0,0.00039578,2]
[340620530,1729543847674,-1000.0,0.0004,30]
[340620531,1729543847684,-281.95,0.0004,2]
[340620532,1729543847693,-175.59,0.00040211,2]
[340620533,1729543847702,-26197.3779173,0.00040221,7]
[340620534,1729543847711,-151.0,0.00040221,14]
[340620535,1729543847720,-179.02,0.00040381,120]
[340620536,1729543847729,-2500.0,0.00040504,120]
[340620537,1729543847738,-150.0,0.00040899,2]
[340620538,1729543847748,-150.0,0.00040899,2]
[340620539,1729543847757,-556.58,0.00040964,2]
[340620540,1729543847767,-348.37078,0.00041096,14]
[340620541,1729543847777,-348.37078,0.00041096,14]
[340620542,1729543847786,-348.37078,0.00041096,14]
[340620543,1729543847796,-348.37078,0.00041096,14]
[340620544,1729543847806,-348.37078,0.00041096,14]
[340620545,1729543847816,-348.37078,0.00041096,14]
[340620546,1729543847825,-4094.0,0.000427,117]
[340620547,1729543847834,-179.02,0.00042965,120]
[340620548,1729543847843,-556.58,0.00043228,2]
[340620549,1729543847852,-161.2247948,0.00043596,12]
[340620550,1729543847862,-175.59,0.00043686,2]
[340620551,1729543847871,-812.0,0.00043696,2]
[340620552,1729543847880,-561.541,0.00043696,2]
[340620553,1729543847890,-1245.0,0.00043696,2]
[340620554,1729543847899,-450.0,0.00043696,2]
[340620555,1729543847908,-556.609,0.00043696,2]
[340620556,1729543847917,-936.0,0.00043696,2]
[340620557,1729543847927,-241.334,0.00043696,2]
[340620558,1729543847936,-1910.0,0.00043696,2]
[340620559,1729543847945,-3359.0,0.00043696,2]
[340620560,1729543847954,-809.0,0.00043696,2]
[340620561,1729543847963,-232.473259,0.00043696,14]
[340620562,1729543847973,-232.473259,0.00043696,14]
[340620563,1729543847982,-3036.856312,0.00043696,14]
[340620564,1729543847991,-3036.856312,0.00043696,14]
[340620565,1729543848000,-262.026973,0.00043696,14]
[340620566,1729543848009,-262.026973,0.00043696,14]
[340620567,1729543848019,-13539.0,0.00043696,2]
[340620568,1729543848028,-5888.0,0.00043696,2]
[340620569,1729543848038,-150.0,0.00043696,2]
[340620570,1729543848048,-1151.0,0.00043696,2]
[340620571,1729543848058,-1084.0,0.00043696,2]
[340620572,1729543848067,-500.0,0.00043771,10]
[340620573,1729543848077,-556.0,0.000438,2]
[340620574,1729543848086,-1410.34065702,0.000438,2]
[340620575,1729543848095,-501.29846828,0.0004388,10]
[340620576,1729543848105,-300.23573021,0.0004388,10]
[340620577,1729543848115,-504.77801501,0.0004388,10]
[340620578,1729543848125,-500.73979238,0.0004388,10]
[340620579,1729543848134,-502.519854,0.00044,57]
[340620580,1729543848143,-1000.0,0.00044789,2]
[340620581,1729543848153,-10808.74982852,0.00044859,3]
[340620582,1729543848162,-175.59,0.0004499,2]
[340620583,1729543848172,-175.59,0.0004499,2]
[340620584,1729543848182,-175.59,0.0004499,2]
[340620585,1729543848192,-175.59,0.0004499,2]
[340620586,1729543848202,-175.59,0.0004499,2]
[340620587,1729543848212,-175.59,0.0004499,2]
[340620588,1729543848222,-175.59,0.0004499,2]
[340620589,1729543848231,-175.59,0.0004499,2]
[340620590,1729543848241,-175.59,0.0004499,2]
[340620591,1729543848250,-2500.0,0.00044999,120]
[340620592,1729543848260,-2500.0,0.00044999,120]
[340620593,1729543848270,-2000.0,0.00044999,120]
[340620594,1729543848280,-370712.23683676,0.00045,120]
[340620595,1729543870148,250.0,0.0001,2]
[340620596,1729543872384,-300.0,0.00012,2]
[340620600,1729544403351,-150.0,0.00012,2]
[340620601,1729544403893,-150.0,0.00012,2]
[340620602,1729544405420,-150.0,0.00012,2]
[340620603,1729544406593,-150.0,0.00012,2]
[340620604,1729544411168,-150.0,0.00012,2]
[340620605,1729544411710,-150.0,0.00012,2]
[340620606,1729544413242,-150.0,0.00012,2]
[340620607,1729544413762,-150.0,0.00012,2]
[340620608,1729544417363,-150.0,0.00012,2]
[340620609,1729544418382,-150.0,0.00012,2]
[340620610,1729544419838,-150.0,0.00012,2]
[340620611,1729544420405,-150.0,0.00012,2]
[340620612,1729544420953,-150.0,0.00012,2]
[340620613,1729544426930,-150.0,0.00012,2]
[340620614,1729544427951,-150.0,0.00012,2]
[340620615,1729544427973,-60.45245589,0.00012,2]
[340620616,1729544449429,158.91,0.00010959,2]
[340620617,1729544452586,-150.0,0.00012,2]
[340620618,1729544452610,-6724.0,0.00012,2]
[340620619,1729544464154,-150.0,0.00012,2]
[340620644,1729545031459,-339.49536537,0.0001194,2]
[340620645,1729545031469,-25.85674069,0.000139,2]
[340620646,1729545031517,-292.12022459,0.000139,2]
[340620647,1729545031526,-350.0,0.00014,2]
[340620648,1729545031536,-400.0,0.00016,2]
[340620649,1729545031546,-140.2570167,0.000203,2]
[340620650,1729545031557,-1630.7429833,0.000203,2]
[340620651,1729545031567,-515.0,0.000203,2]
[340620652,1729545031576,-1424.030135,0.000203,2]
[340620653,1729545031587,-545.44642781,0.000203,2]
[340620654,1729545031598,-2530.02636264,0.000203,2]
[340620655,1729545031608,-174.0,0.00023,2]
[340620656,1729545031617,-174.0,0.00024164,2]
[340620657,1729545031626,-1558.566911,0.00027952,2]
[340620658,1729545031635,-3705.544,0.00028093,18]
[340620659,1729545031644,-250.6774892,0.000288,2]
[340620660,1729545031653,-556.1725692,0.000304,2]
[340620661,1729545031662,-251.0,0.000323,2]
[340620662,1729545031671,-198.27877453,0.00034259,4]
[340620663,1729545031683,-54.69148363,0.00034259,4]
[340620664,1729545031691,-206.46429804,0.00037354,2]
[340620665,1729545031703,-103.32570196,0.00037354,2]
[340620666,1729545031712,-250.0,0.00038642,120]
[340620667,1729545031721,-153.44,0.00038921,120]
[340620668,1729545031731,-11.084985,0.00039089,2]
[340620669,1729545031742,-238.915015,0.00039089,2]
[340620670,1729545031751,-1971.76636915,0.00039112,2]
[340620671,1729545031762,-1117.22136038,0.00039112,2]
[340620672,1729545031773,-4950.67227047,0.00039112,2]
[340620673,1729545031782,-198.2,0.00039615,120]
[340620674,1729545031792,-309.79,0.00039618,2]
[340620675,1729545031801,-250.0,0.00039656,2]
[340620677,1729545031810,-182.94,0.0004,2]
[340620679,1729545031819,-612.22,0.00041061,7]
[340620681,1729545031828,-612.22,0.00041061,7]
[340620683,1729545031837,-813.7818171,0.00041749,2]
[340620686,1729545031849,-186.2181829,0.00041749,2]
[340620688,1729545031859,-329.1798171,0.00041804,7]
[340620690,1729545031874,-3152.0601829,0.00041804,7]
[340620692,1729545031883,-3481.24,0.00041804,7]
[340620693,1729545031892,-3481.24,0.00041804,7]
[340620694,1729545031901,-3481.24,0.00041804,7]
[340620695,1729545031910,-3481.24,0.00041804,7]
[340620696,1729545031919,-3481.24,0.00041804,7]
[340620697,1729545031928,-3481.24,0.00041804,7]
[340620698,1729545031937,-3481.24,0.00041804,7]
[340620699,1729545031946,-3481.24,0.00041804,7]
[340620700,1729545031955,-309.79,0.00041882,2]
[340620701,1729545031964,-2074.02,0.00042645,7]
[340620702,1729545031973,-520.4,0.00042645,7]
[340620703,1729545031983,-2074.02,0.00042645,7]
[340620704,1729545031992,-2074.02,0.00042645,7]
[340620705,1729545032002,-2074.02,0.00042645,7]
[340620706,1729545032011,-2074.02,0.00042645,7]
[340620707,1729545032020,-2074.02,0.00042645,7]
[340620708,1729545032030,-2074.02,0.00042645,7]
[340620709,1729545032039,-2074.02,0.00042645,7]
[340620710,1729545032048,-153.44,0.00042698,120]